fUSD/lending_fUSD_20240205
["ID","MTS","AMOUNT","RATE_DAILY","PERIOD"]
[313337041,1707168648467,-150.0,0.0004524,2]
[313337042,1707168648476,-150.0,0.00045242,2]
[313337043,1707168648485,-150.0,0.00045242,2]
[313337044,1707168648495,-150.0,0.00045242,2]
[313337045,1707168648504,-150.0,0.00045297,2]
[313337046,1707168648513,-150.0,0.0004534,2]
[313337047,1707168648522,-150.0,0.00045341,2]
[313337048,1707168648532,-300.0,0.00045357,2]
[313337049,1707168648541,-150.0,0.00045363,2]
[313337050,1707168648550,-150.0,0.0004537,2]
[313337051,1707168648559,-150.0,0.00045379,2]
[313337052,1707168648569,-526.14582221,0.00045399,5]
[313337053,1707168648578,-150.0,0.00045418,2]
[313337054,1707168648587,-150.0,0.00045419,2]
[313337055,1707168648596,-150.0,0.00045425,2]
[313337056,1707168648605,-150.0,0.00045434,2]
[313337057,1707168648614,-150.0,0.00045435,2]
[313337058,1707168648623,-300.0,0.00045435,2]
[313337059,1707168648633,-1500.0,0.00045447,2]
[313337060,1707168648643,-150.0,0.00045452,2]
[313337061,1707168648654,-150.0,0.00045458,2]
[313337062,1707168648664,-150.0,0.00045463,2]
[313337063,1707168648674,-150.0,0.0004547,2]
[313337064,1707168648685,-150.0,0.00045478,2]
[313337065,1707168648695,-150.0,0.00045478,2]
[313337066,1707168648704,-500.0,0.00045479,20]
[313337067,1707168648714,-500.0,0.00045479,7]
[313337068,1707168648724,-1000.0,0.00045479,7]
[313337069,1707168648734,-735.56,0.00045479,7]
[313337070,1707168648744,-500.0,0.00045479,7]
[313337071,1707168648754,-500.0,0.00045479,7]
[313337072,1707168648763,-500.0,0.00045479,7]
[313337073,1707168648773,-500.0,0.00045479,7]
[313337074,1707168648782,-517.51,0.00045479,7]
[313337075,1707168648791,-500.0,0.00045479,7]
[313337076,1707168648801,-500.0,0.00045479,7]
[313337077,1707168648811,-500.0,0.00045479,7]
[313337078,1707168648821,-508.82,0.00045479,7]
[313337079,1707168648830,-500.0,0.00045479,7]
[313337080,1707168648839,-593.78,0.00045479,7]
[313337081,1707168648850,-520.99,0.00045479,7]
[313337082,1707168648859,-1047.06,0.00045479,7]
[313337083,1707168648869,-739.41,0.00045479,7]
[313337084,1707168648879,-500.0,0.00045479,7]
[313337085,1707168648888,-1329.15,0.00045479,7]
[313337086,1707168648898,-150.0,0.00045485,2]
[313337087,1707168648907,-150.0,0.00045485,2]
[313337088,1707168648916,-150.0,0.00045494,2]
[313337089,1707168648926,-150.0,0.00045498,2]
[313337090,1707168648935,-1597.86,0.000455,7]
[313337091,1707168648945,-1000.0,0.000455,2]
[313337092,1707168648954,-150.0,0.000455,2]
[313337093,1707168648963,-186.83697916,0.00045506,2]
[313337094,1707168648972,-326.55765796,0.00045509,2]
[313337095,1707168648982,-150.0,0.0004551,2]
[313337096,1707168648991,-150.0,0.00045532,2]
[313337097,1707168649001,-150.0,0.00045533,2]
[313337098,1707168649010,-150.0,0.00045553,2]
[313337099,1707168649019,-150.0,0.00045556,2]
[313337100,1707168649028,-150.0,0.00045559,2]
[313337101,1707168649037,-151.15186373,0.00045566,2]
[313337102,1707168649046,-150.0,0.00045568,2]
[313337103,1707168649055,-150.0,0.0004557,2]
[313337104,1707168649065,-150.0,0.00045582,2]
[313337105,1707168649074,-150.0,0.00045594,2]
[313337106,1707168649083,-150.0,0.00045607,2]
[313337107,1707168649092,-150.0,0.00045625,2]
[313337108,1707168649101,-150.0,0.00045625,2]
[313337109,1707168649111,-200.0,0.00045631,10]
[313337110,1707168649120,-800.0,0.00045631,20]
[313337111,1707168649129,-300.0,0.00045636,2]
[313337112,1707168649138,-150.0,0.00045642,2]
[313337113,1707168649147,-150.0,0.00045644,2]
[313337114,1707168649158,-150.0,0.00045648,2]
[313337115,1707168649167,-150.0,0.00045653,2]
[313337116,1707168649204,-150.0,0.00045655,2]
[313337117,1707168649214,-150.0,0.00045664,2]
[313337118,1707168649227,-300.0,0.0004567,2]
[313337119,1707168649236,-3343.0,0.00045673,30]
[313337120,1707168649246,-3343.0,0.00045673,60]
[313337121,1707168649255,-150.0,0.00045676,2]
[313337122,1707168649265,-150.0,0.00045678,2]
[313337123,1707168649275,-150.0,0.00045682,2]
[313337124,1707168649284,-150.0,0.00045685,2]
[313337125,1707168649294,-150.0,0.00045687,2]
[313337126,1707168649306,-150.0,0.00045694,2]
[313337127,1707168649315,-150.0,0.00045717,2]
[313337128,1707168649324,-300.0,0.00045721,2]
[313337129,1707168649333,-150.0,0.00045735,2]
[313337130,1707168649342,-150.0,0.00045742,2]
[313337131,1707168649352,-150.0,0.00045748,2]
[313337132,1707168649361,-245.22630715,0.00045749,2]
[313337133,1707168649371,-153.51,0.00045759,2]
[313337134,1707168649380,-1500.0,0.00045762,2]
[313337135,1707168649389,-150.0,0.0004577,2]
[313337136,1707168649399,-289.52666185,0.00045779,2]
[313337137,1707168649408,-150.0,0.00045781,2]
[313337138,1707168649418,-168.0,0.0004579,3]
[313337139,1707168649427,-150.0,0.00045798,2]
[313337140,1707168649442,-150.0,0.000458,2]
[313337141,1707168649457,-300.0,0.00045801,2]
[313337142,1707168649466,-150.0,0.00045803,2]
[313337143,1707168649476,-300.0,0.00045805,2]
[313337144,1707168649485,-150.0,0.0004581,2]
[313337145,1707168649494,-150.0,0.00045824,2]
[313337146,1707168649504,-150.0,0.00045828,2]
[313337147,1707168649513,-150.0,0.00045829,2]
[313337148,1707168649522,-150.0,0.00045843,2]
[313337149,1707168649532,-150.0,0.00045846,2]
[313337150,1707168649542,-1500.0,0.0004585,2]
[313337151,1707168649551,-150.0,0.00045856,2]
[313337152,1707168649561,-150.0,0.00045861,2]
[313337153,1707168649570,-300.0,0.00045861,2]
[313337154,1707168649580,-150.0,0.00045866,2]
[313337155,1707168649589,-150.0,0.00045871,2]
[313337156,1707168649598,-150.0,0.00045874,2]
[313337157,1707168649607,-150.0,0.00045875,2]
[313337158,1707168649617,-150.0,0.00045877,2]
[313337159,1707168649627,-150.0,0.00045882,2]
[313337160,1707168649636,-252.0,0.0004589,2]
[313337161,1707168649645,-219.0,0.0004589,2]
[313337162,1707168649655,-152.0,0.00045896,3]
[313337163,1707168649665,-150.0,0.00045899,2]
[313337164,1707168649674,-150.0,0.000459,2]
[313337165,1707168649684,-150.0,0.00045905,2]
[313337166,1707168649694,-150.0,0.00045916,2]
[313337167,1707168649703,-300.0,0.00045923,2]
[313337168,1707168649713,-150.0,0.00045933,2]
[313337169,1707168649722,-1500.0,0.00045934,2]
[313337170,1707168649731,-150.0,0.00045945,2]
[313337171,1707168649741,-150.0,0.00045946,2]
[313337172,1707168649751,-150.0,0.00045947,2]
[313337173,1707168649762,-150.0,0.00045948,2]
[313337174,1707168649772,-150.0,0.00045949,2]
[313337175,1707168649783,-150.0,0.00045955,2]
[313337176,1707168649792,-311.70538894,0.00045958,2]
[313337177,1707168649801,-185.01090773,0.00045964,2]
[313337178,1707168649811,-150.0,0.00045968,2]
[313337179,1707168649820,-150.0,0.00045969,2]
[313337180,1707168649829,-150.0,0.00045974,2]
[313337181,1707168649840,-150.0,0.00045974,2]
[313337182,1707168649850,-150.0,0.00045982,2]
[313337183,1707168649860,-869.0,0.0004599,2]
[313337184,1707168649869,-686.0,0.0004599,2]
[313337185,1707168649878,-150.0,0.00045997,2]
[313337186,1707168649888,-150.01,0.00045999,2]
[313337187,1707168649898,-3309.32935427,0.00045999,2]
[313337188,1707168649907,-3000.0,0.00046,45]
[313337189,1707168649917,-150.0,0.00046003,2]
[313337190,1707168649927,-3000.0,0.0004601,46]
[313337191,1707168649937,-228.32754821,0.0004601,2]
[313337192,1707168649946,-150.0,0.00046014,2]
[313337193,1707168649956,-150.0,0.00046015,2]
[313337194,1707168649965,-150.0,0.00046015,2]
[313337195,1707168649975,-300.0,0.00046015,2]
[313337196,1707168649985,-5449.297538,0.0004602,46]
[313337197,1707168649995,-150.0,0.00046021,2]
[313337198,1707168650004,-308.80025419,0.00046023,2]
[313337199,1707168650014,-787.8389547,0.00046024,2]
[313337200,1707168650023,-24976.8004768,0.00046024,2]
[313337201,1707168650033,-524.75245405,0.00046027,20]
[313337202,1707168650043,-500.0,0.00046027,7]
[313337203,1707168650053,-1000.0,0.00046027,7]
[313337204,1707168650063,-735.56,0.00046027,7]
[313337205,1707168650073,-589.08485783,0.00046027,7]
[313337206,1707168650084,-500.0,0.00046027,7]
[313337207,1707168650095,-500.0,0.00046027,7]
[313337208,1707168650104,-517.51,0.00046027,7]
[313337209,1707168650114,-500.0,0.00046027,7]
[313337210,1707168650124,-500.0,0.00046027,7]
[313337211,1707168650134,-337.62966398,0.00046027,7]
[313337212,1707168650143,-508.82,0.00046027,7]
[313337213,1707168650153,-500.0,0.00046027,7]
[313337214,1707168650163,-593.78,0.00046027,7]
[313337215,1707168650173,-520.99,0.00046027,7]
[313337216,1707168650183,-1047.06,0.00046027,7]
[313337217,1707168650193,-739.41,0.00046027,7]
[313337218,1707168650203,-500.0,0.00046027,7]
[313337219,1707168650213,-1329.15,0.00046027,7]
[313337220,1707168650226,-1505.7256632,0.00046119,2]
[313337221,1707168650236,-1343.5819641,0.00046119,2]
[313337222,1707168650246,-153.3732562,0.0004615,30]
[313337223,1707168650255,-153.44,0.000462,5]
[313337224,1707168650265,-153.44,0.000462,5]
[313337225,1707168650275,-174.07562,0.00046506,60]
[313337226,1707168650284,-155.73119273,0.00046506,4]
[313337227,1707168650294,-229.57212479,0.00046506,4]
[313337228,1707168650304,-5003.57891,0.0004655,30]
[313337229,1707168650315,-450.0,0.00046575,2]
[313337230,1707168650326,-500.0,0.00046575,7]
[313337231,1707168650335,-1000.0,0.00046575,7]
[313337232,1707168650345,-735.56,0.00046575,7]
[313337233,1707168650355,-500.0,0.00046575,31]
[313337234,1707168650365,-500.0,0.00046575,31]
[313337235,1707168650375,-517.51,0.00046575,31]
[313337236,1707168650385,-500.0,0.00046575,31]
[313337237,1707168650395,-500.0,0.00046575,31]
[313337238,1707168650405,-508.82,0.00046575,31]
[313337239,1707168650414,-500.0,0.00046575,31]
[313337240,1707168650423,-593.78,0.00046575,31]
[313337241,1707168650434,-520.99,0.00046575,31]
[313337242,1707168650443,-1047.06,0.00046575,31]
[313337243,1707168650453,-739.41,0.00046575,31]
[313337244,1707168650463,-500.0,0.00046575,31]
[313337245,1707168650473,-1329.15,0.00046575,31]
[313337246,1707168650483,-206.0,0.00046599,27]
[313337247,1707168650492,-1053.81299471,0.000468,42]
[313337248,1707168650502,-358.0,0.0004689,2]
[313337249,1707168650512,-280.0,0.0004689,2]
[313337250,1707168650522,-1230.05731595,0.00046975,4]
[313337251,1707168650531,-214.19078987,0.00046976,4]
[313337252,1707168650541,-246.97993419,0.00046976,4]
[313337253,1707168650551,-220.81445407,0.00046976,4]
[313337254,1707168650561,-476.72774164,0.00046976,4]
[313337255,1707168650571,-155.11976048,0.00046976,4]
[313337256,1707168650581,-158.79636252,0.00046976,4]
[313337257,1707168650591,-338.11095919,0.00046976,30]
[313337258,1707168650601,-208.39091089,0.00046976,10]
[313337259,1707168650611,-1436.13832154,0.00046976,17]
[313337260,1707168650622,-162.77421475,0.00046976,4]
[313337261,1707168650632,-208.40334228,0.00046976,4]
[313337262,1707168650642,-286.90300861,0.00046976,4]
[313337263,1707168650652,-7796.70726592,0.00046976,2]
[313337264,1707168650662,-3409.31715413,0.00046976,2]
[313337265,1707168650672,-9000.73304889,0.00046976,4]
[313337266,1707168650682,-4622.60225803,0.00046976,4]
[313337267,1707168650692,-228.68492109,0.00046976,4]
[313337268,1707168650702,-208.58399409,0.00046976,4]
[313337269,1707168650713,-151.0,0.00046976,14]
[313337270,1707168650723,-151.0,0.00046976,14]
[313337271,1707168650733,-27761.53471226,0.00046977,4]
[313337272,1707168650743,-460.22942243,0.00046977,4]
[313337273,1707168650754,-1145.64112519,0.00046977,4]
[313337274,1707168650764,-766.07655536,0.00046978,4]
[313337275,1707168650774,-134441.68456435,0.00046978,4]
[313337276,1707168650785,-100000.0,0.00047,37]
[313337277,1707168650795,-151.0,0.00047,14]
[313337278,1707168650805,-274.133631,0.00047,14]
[313337279,1707168650815,-174.07562,0.00047087,60]
[313337280,1707168650825,-500.0,0.00047123,7]
[313337281,1707168650836,-1000.0,0.00047123,7]
[313337282,1707168650846,-735.56,0.00047123,7]
[313337283,1707168650857,-371.39962692,0.00047123,31]
[313337284,1707168650867,-500.0,0.00047123,31]
[313337285,1707168650877,-517.51,0.00047123,31]
[313337286,1707168650888,-500.0,0.00047123,31]
[313337287,1707168650898,-500.0,0.00047123,31]
[313337288,1707168650908,-508.82,0.00047123,31]
[313337289,1707168650918,-500.0,0.00047123,31]
[313337290,1707168650928,-593.78,0.00047123,31]
[313337291,1707168650938,-520.99,0.00047123,31]
[313337292,1707168650948,-1047.06,0.00047123,31]
[313337293,1707168650958,-739.41,0.00047123,31]
[313337294,1707168650969,-500.0,0.00047123,31]
[313337295,1707168650979,-1329.15,0.00047123,31]
[313337296,1707168650989,-1000.0,0.000472,20]
[313337297,1707168651000,-2507.0,0.0004734,30]
[313337298,1707168651010,-2507.0,0.0004734,60]
[313337299,1707168651021,-2004.22500556,0.00047355,23]
[313337300,1707168651031,-4812.66790771,0.000475,50]
[313337301,1707168651041,-1780.67,0.00047572,15]
[313337302,1707168651051,-174.07562,0.00047668,60]
[313337303,1707168651061,-500.0,0.00047671,7]
[313337304,1707168651072,-504.6,0.00047671,7]
[313337305,1707168651082,-735.56,0.00047671,7]
[313337306,1707168651093,-500.0,0.00047671,31]
[313337307,1707168651104,-517.51,0.00047671,31]
[313337308,1707168651114,-199.43,0.00047671,31]
[313337309,1707168651125,-500.0,0.00047671,31]
[313337310,1707168651135,-508.82,0.00047671,31]
[313337311,1707168651145,-500.0,0.00047671,31]
[313337312,1707168651155,-593.78,0.00047671,31]
[313337313,1707168651166,-520.99,0.00047671,31]
[313337314,1707168651177,-1047.06,0.00047671,31]
[313337315,1707168651188,-739.41,0.00047671,31]
[313337316,1707168651199,-500.0,0.00047671,31]
[313337317,1707168651210,-3862.42162089,0.00047888,10]
[313337318,1707168651221,-526.14582221,0.00047899,5]
[313337319,1707168651237,-150.0,0.000479,38]
[313337320,1707168651247,-1506.85164052,0.000479,2]
[313337321,1707168651257,-1000.0,0.000479,2]
[313337322,1707168651268,-562.0,0.000479,2]
[313337323,1707168651279,-500.0,0.00047945,30]
[313337324,1707168651289,-162.82587741,0.00047975,60]
[313337325,1707168651299,-100000.0,0.00048,38]
[313337326,1707168651310,-800.0,0.00048,4]
[313337327,1707168651320,-545.894,0.00048055,120]
[313337328,1707168651331,-1000.0,0.000482,2]
[313337329,1707168651341,-500.0,0.00048219,7]
[313337330,1707168651351,-735.56,0.00048219,7]
[313337331,1707168651361,-374.31209799,0.00048219,31]
[313337332,1707168651371,-517.51,0.00048219,31]
[313337333,1707168651382,-500.0,0.00048219,31]
[313337334,1707168651392,-508.82,0.00048219,31]
[313337335,1707168651403,-500.0,0.00048219,31]
[313337336,1707168651413,-593.78,0.00048219,31]
[313337337,1707168651424,-520.99,0.00048219,31]
[313337338,1707168651436,-1047.06,0.00048219,31]
[313337339,1707168651447,-739.41,0.00048219,31]
[313337340,1707168651457,-500.0,0.00048219,31]
[313337341,1707168651467,-174.07562,0.0004825,60]
[313337342,1707168651478,-150.0,0.000483,30]
[313337343,1707168651487,-545.894,0.00048329,120]
[313337344,1707168651497,-150.0,0.000484,38]
[313337345,1707168651507,-580.81234168,0.00048408,4]
[313337346,1707168651517,-13635.99140844,0.000485,10]
[313337347,1707168651527,-648.0,0.0004859,2]
[313337348,1707168651536,-507.0,0.0004859,2]
[313337349,1707168651547,-179.09735676,0.000486,30]
[313337350,1707168651557,-545.894,0.00048603,120]
[313337351,1707168651566,-151.0,0.00048668,2]
[313337352,1707168651576,-20164.32169376,0.00048671,2]
[313337353,1707168651586,-151.0,0.00048671,14]
[313337354,1707168651596,-251.0,0.00048679,28]
[313337355,1707168651605,-505.87,0.000487,7]
[313337356,1707168651615,-649.75,0.000487,7]
[313337357,1707168651625,-1663.0,0.000487,117]
[313337358,1707168651634,-632.72,0.00048767,7]
[313337359,1707168651644,-735.56,0.00048767,7]
[313337360,1707168651653,-517.51,0.00048767,31]
[313337361,1707168651663,-500.0,0.00048767,31]
[313337362,1707168651672,-508.82,0.00048767,31]
[313337363,1707168651683,-500.0,0.00048767,31]
[313337364,1707168651693,-593.78,0.00048767,31]
[313337365,1707168651703,-520.99,0.00048767,31]
[313337366,1707168651712,-1047.06,0.00048767,31]
[313337367,1707168651722,-739.41,0.00048767,31]
[313337368,1707168651732,-593.37779949,0.00048767,31]
[313337369,1707168651741,-174.07562,0.00048831,60]
[313337370,1707168651751,-545.894,0.00048877,120]
[313337371,1707168651761,-1597.86,0.000489,7]
[313337372,1707168651770,-150.0,0.000489,39]
[313337373,1707168651780,-2353.5230066,0.00048966,2]
[313337374,1707168651789,-100000.0,0.00049,39]
[313337375,1707168651799,-2028.25930204,0.00049,7]
[313337376,1707168651808,-3474.5506559,0.00049,30]
[313337377,1707168651818,-3556.8095644,0.00049,30]
[313337378,1707168651827,-1453.95328457,0.00049,30]
[313337379,1707168651837,-2129.67329307,0.00049,30]
[313337380,1707168651847,-1184.17113874,0.00049,30]
[313337381,1707168651856,-546.05846507,0.00049,30]
[313337382,1707168651867,-153.44,0.000491,6]
[313337383,1707168651876,-153.44,0.000491,6]
[313337384,1707168651886,-153.44,0.000491,6]
[313337385,1707168651896,-153.44,0.000491,6]
[313337386,1707168651905,-153.44,0.000491,6]
[313337387,1707168651916,-153.44,0.000491,6]
[313337388,1707168651925,-153.44,0.000491,6]
[313337389,1707168651935,-545.894,0.00049151,120]
[313337390,1707168651945,-206.0,0.00049279,34]
[313337391,1707168651955,-5000.0,0.00049291,4]
[313337392,1707168651964,-600.0,0.00049315,31]
[313337393,1707168651974,-735.56,0.00049315,7]
[313337394,1707168651984,-517.51,0.00049315,31]
[313337395,1707168651994,-521.59468091,0.00049315,31]
[313337396,1707168652003,-508.82,0.00049315,31]
[313337397,1707168652013,-500.0,0.00049315,31]
[313337398,1707168652023,-593.78,0.00049315,31]
[313337399,1707168652032,-520.99,0.00049315,31]
[313337400,1707168652041,-1047.06,0.00049315,31]
[313337401,1707168652051,-10715.16756304,0.00049315,30]
[313337402,1707168652061,-739.41,0.00049315,31]
[313337403,1707168652070,-200.0,0.00049315,60]
[313337404,1707168652080,-800.0,0.00049315,30]
[313337405,1707168652090,-150.0,0.000494,39]
[313337406,1707168652099,-1000.0,0.00049416,30]
[313337407,1707168652109,-1000.0,0.00049416,30]
[313337408,1707168652119,-545.894,0.00049425,120]
[313337409,1707168652130,-1000.0,0.00049456,30]
[313337410,1707168652139,-302.0,0.00049486,4]
[313337411,1707168652149,-150.53844691,0.00049515,30]
[313337412,1707168652158,-1000.0,0.00049531,30]
[313337413,1707168652168,-1000.0,0.00049611,30]
[313337414,1707168652178,-1000.0,0.00049666,30]
[313337415,1707168652187,-1000.0,0.00049666,30]
[313337416,1707168652197,-5130.9096,0.0004968,120]
[313337417,1707168652207,-557.0,0.0004969,2]
[313337418,1707168652218,-382.0,0.0004969,2]
[313337419,1707168652234,-545.894,0.00049699,120]
[313337420,1707168652243,-5000.0,0.000497,120]
[313337421,1707168652253,-1000.0,0.00049702,30]
[313337422,1707168652264,-251.0,0.00049715,28]
[313337423,1707168652275,-1000.0,0.00049743,30]
[313337424,1707168652286,-1000.0,0.00049764,30]
[313337425,1707168652297,-183.0,0.0004979,2]
[313337426,1707168652308,-40839.14537181,0.000498,120]
[313337427,1707168652318,-505.87,0.000498,7]
[313337428,1707168652327,-649.75,0.000498,7]
[313337429,1707168652336,-889.81022806,0.000498,14]
[313337430,1707168652347,-889.81022806,0.000498,14]
[313337431,1707168652358,-889.81022806,0.000498,14]
[313337432,1707168652368,-889.81022806,0.000498,14]
[313337433,1707168652377,-889.81022806,0.000498,14]
[313337434,1707168652387,-889.81022806,0.000498,14]
[313337435,1707168652398,-889.81022806,0.000498,14]
[313337436,1707168652408,-889.81022806,0.000498,14]
[313337437,1707168652418,-889.81022806,0.000498,14]
[313337438,1707168652429,-889.81022806,0.000498,14]
[313337439,1707168652439,-889.81022806,0.000498,14]
[313337440,1707168652449,-889.81022806,0.000498,14]
[313337441,1707168652459,-889.81022806,0.000498,14]
[313337442,1707168652469,-889.81022806,0.000498,14]
[313337443,1707168652479,-889.81022806,0.000498,14]
[313337444,1707168652489,-889.81022806,0.000498,14]
[313337445,1707168652499,-889.81022806,0.000498,14]
[313337446,1707168652509,-889.81022806,0.000498,14]
[313337447,1707168652519,-889.81022806,0.000498,14]
[313337448,1707168652529,-889.81,0.000498,14]
[313337449,1707168652539,-421.35802242,0.000498,14]
[313337450,1707168652551,-421.35802242,0.000498,14]
[313337451,1707168652562,-421.35802242,0.000498,14]
[313337452,1707168652574,-421.35802242,0.000498,14]
[313337453,1707168652585,-421.35802242,0.000498,14]
[313337454,1707168652595,-421.35802242,0.000498,14]
[313337455,1707168652605,-421.35802242,0.000498,14]
[313337456,1707168652615,-421.35802242,0.000498,14]
[313337457,1707168652625,-421.35802242,0.000498,14]
[313337458,1707168652634,-421.35802242,0.000498,14]
[313337459,1707168652644,-421.35802242,0.000498,14]
[313337460,1707168652654,-421.35802242,0.000498,14]
[313337461,1707168652663,-421.35802242,0.000498,14]
[313337462,1707168652674,-421.35802242,0.000498,14]
[313337463,1707168652684,-421.35802242,0.000498,14]
[313337464,1707168652694,-421.35802242,0.000498,14]
[313337465,1707168652704,-421.35802242,0.000498,14]
[313337466,1707168652713,-421.35802242,0.000498,14]
[313337467,1707168652724,-421.35802242,0.000498,14]
[313337468,1707168652733,-421.35,0.000498,14]
[313337469,1707168652743,-609.87675497,0.000498,14]
[313337470,1707168652753,-609.87675497,0.000498,14]
[313337471,1707168652762,-609.87675497,0.000498,14]
[313337472,1707168652773,-609.87675497,0.000498,14]
[313337473,1707168652783,-609.87675497,0.000498,14]
[313337474,1707168652792,-609.87675497,0.000498,14]
[313337475,1707168652802,-609.87675497,0.000498,14]
[313337476,1707168652811,-609.87675497,0.000498,14]
[313337477,1707168652821,-609.87675497,0.000498,14]
[313337478,1707168652830,-609.87675497,0.000498,14]
[313337479,1707168652840,-609.87675497,0.000498,14]
[313337480,1707168652850,-609.87675497,0.000498,14]
[313337481,1707168652862,-609.87675497,0.000498,14]
[313337482,1707168652993,-609.87675497,0.000498,14]
[313337483,1707168653002,-609.87675497,0.000498,14]
[313337484,1707168653012,-609.87675497,0.000498,14]
[313337485,1707168653021,-609.87675497,0.000498,14]
[313337486,1707168653030,-609.87675497,0.000498,14]
[313337487,1707168653040,-609.87675497,0.000498,14]
[313337488,1707168653049,-609.87,0.000498,14]
[313337489,1707168653058,-740.98736666,0.000498,14]
[313337490,1707168653067,-740.98736666,0.000498,14]
[313337491,1707168653076,-740.98736666,0.000498,14]
[313337492,1707168653085,-740.98736666,0.000498,14]
[313337493,1707168653094,-740.98736666,0.000498,14]
[313337494,1707168653103,-740.98736666,0.000498,14]
[313337495,1707168653112,-740.98736666,0.000498,14]
[313337496,1707168653122,-740.98736666,0.000498,14]
[313337497,1707168653130,-740.98736666,0.000498,14]
[313337498,1707168653139,-740.98736666,0.000498,14]
[313337499,1707168653148,-740.98736666,0.000498,14]
[313337500,1707168653158,-740.98736666,0.000498,14]
[313337501,1707168653167,-740.98736666,0.000498,14]
[313337502,1707168653175,-740.98736666,0.000498,14]
[313337503,1707168653185,-740.98736666,0.000498,14]
[313337504,1707168653194,-740.98736666,0.000498,14]
[313337505,1707168653203,-740.98736666,0.000498,14]
[313337506,1707168653212,-740.98736666,0.000498,14]
[313337507,1707168653221,-740.98736666,0.000498,14]
[313337508,1707168653234,-740.98,0.000498,14]
[313337509,1707168653243,-623.65960199,0.000498,14]
[313337510,1707168653252,-623.65960199,0.000498,14]
[313337511,1707168653262,-623.65960199,0.000498,14]
[313337512,1707168653272,-623.65960199,0.000498,14]
[313337513,1707168653281,-623.65960199,0.000498,14]
[313337514,1707168653291,-623.65960199,0.000498,14]
[313337515,1707168653301,-623.65960199,0.000498,14]
[313337516,1707168653311,-623.65960199,0.000498,14]
[313337517,1707168653321,-623.65960199,0.000498,14]
[313337518,1707168653331,-623.65960199,0.000498,14]
[313337519,1707168653341,-623.65960199,0.000498,14]
[313337520,1707168653350,-623.65960199,0.000498,14]
[313337521,1707168653359,-623.65960199,0.000498,14]
[313337522,1707168653369,-623.65960199,0.000498,14]
[313337523,1707168653378,-623.65960199,0.000498,14]
[313337524,1707168653388,-623.65960199,0.000498,14]
[313337525,1707168653398,-623.65960199,0.000498,14]
[313337526,1707168653408,-623.65960199,0.000498,14]
[313337527,1707168653417,-623.65960199,0.000498,14]
[313337528,1707168653426,-623.65,0.000498,14]
[313337529,1707168653436,-2004.22500556,0.000498,26]
[313337530,1707168653446,-324.19032355,0.000498,26]
[313337531,1707168653456,-2536.26832664,0.000498,14]
[313337532,1707168653465,-1053.81299471,0.000498,46]
[313337533,1707168653474,-1160.70035702,0.000498,2]
[313337534,1707168653483,-1426.41206121,0.000498,2]
[313337535,1707168653493,-600.0,0.00049863,7]
[313337536,1707168653502,-600.0,0.00049863,7]
[313337537,1707168653511,-735.56,0.00049863,7]
[313337538,1707168653520,-517.51,0.00049863,31]
[313337539,1707168653529,-508.82,0.00049863,31]
[313337540,1707168653538,-500.0,0.00049863,31]